lending/lending_fUSD_20250114
["ID","MTS","AMOUNT","RATE_DAILY","PERIOD"]
[348889472,1736857835479,-3055.11,9.994e-05,2]
[348889474,1736857835487,-500.0,9.994e-05,2]
[348889476,1736857835497,-718.08,9.994e-05,2]
[348889478,1736857835506,-501.29720124,9.994e-05,2]
[348889480,1736857835515,-500.0,9.994e-05,2]
[348889482,1736857835524,-500.0,9.994e-05,2]
[348889484,1736857835533,-500.0,9.994e-05,2]
[348889486,1736857835542,-495.8626581,9.994e-05,2]
[348889491,1736857835576,-4.1373419,9.994e-05,2]
[348889493,1736857835585,-426.93380372,9.994e-05,2]
[348889495,1736857835596,-73.06619628,9.994e-05,2]
[348889497,1736857835605,-357.97564183,9.994e-05,2]
[348889499,1736857835615,-529.1005227,9.994e-05,2]
[348889501,1736857835624,-500.0,9.994e-05,2]
[348889503,1736857835633,-500.0,9.994e-05,2]
[348889505,1736857835643,-500.0,9.994e-05,2]
[348889507,1736857835651,-500.0,9.994e-05,2]
[348889509,1736857835661,-500.0,9.994e-05,2]
[348889511,1736857835671,-505.43514217,9.994e-05,2]
[348889513,1736857835681,-500.0,9.994e-05,2]
[348889515,1736857835690,-500.0,9.994e-05,2]
[348889517,1736857835699,-500.0,9.994e-05,2]
[348889519,1736857835709,-500.90308069,9.994e-05,2]
[348889521,1736857835718,-273.05380242,9.994e-05,2]
[348889523,1736857835727,-500.0,9.994e-05,2]
[348889525,1736857835736,-500.0,9.994e-05,2]
[348889527,1736857835745,-738.86,9.994e-05,2]
[348889529,1736857835754,-500.0,9.994e-05,2]
[348889531,1736857835763,-651.86,9.994e-05,2]
[348889533,1736857835773,-500.0,9.994e-05,2]
[348889535,1736857835782,-500.0,9.994e-05,2]
[348889537,1736857835791,-844.15,9.994e-05,2]
[348889539,1736857835799,-500.0,9.994e-05,2]
[348889541,1736857835809,-500.0,9.994e-05,2]
[348889542,1736857835818,-500.0,9.994e-05,2]
[348889544,1736857835827,-500.0,9.994e-05,2]
[348889546,1736857835836,-500.0,9.994e-05,2]
[348889548,1736857835845,-500.0,9.994e-05,2]
[348889550,1736857835854,-667.8,9.994e-05,2]
[348889552,1736857835863,-504.77050429,9.994e-05,2]
[348889554,1736857835873,-500.0,9.994e-05,2]
[348889557,1736857835883,-502.27187946,9.994e-05,2]
[348889558,1736857835893,-501.08034754,9.994e-05,2]
[348889560,1736857835902,-500.0,9.994e-05,2]
[348889562,1736857835912,-500.0,9.994e-05,2]
[348889564,1736857835922,-500.23388212,9.994e-05,2]
[348889566,1736857835931,-500.0,9.994e-05,2]
[348889568,1736857835940,-500.0,9.994e-05,2]
[348889570,1736857835949,-500.79492842,9.994e-05,2]
[348889571,1736857835959,-500.0,9.994e-05,2]
[348889573,1736857835968,-500.0,9.994e-05,2]
[348889575,1736857835977,-501.78856097,9.994e-05,2]
[348889577,1736857835986,-500.0,9.994e-05,2]
[348889579,1736857835995,-571.45,9.994e-05,2]
[348889581,1736857836004,-502.82911089,9.994e-05,2]
[348889583,1736857836014,-500.0,9.994e-05,2]
[348889585,1736857836023,-503.22358309,9.994e-05,2]
[348889587,1736857836032,-500.31475181,9.994e-05,2]
[348889589,1736857836041,-500.0,9.994e-05,2]
[348889591,1736857836050,-500.0,9.994e-05,2]
[348889593,1736857836061,-501.12925772,9.994e-05,2]
[348889595,1736857836069,-500.0,9.994e-05,2]
[348889597,1736857836079,-500.0,9.994e-05,2]
[348889599,1736857836088,-500.0,9.994e-05,2]
[348889601,1736857836098,-500.0,9.994e-05,2]
[348889603,1736857836107,-500.0,9.994e-05,2]
[348889605,1736857836116,-500.0,9.994e-05,2]
[348889607,1736857836125,-500.0,9.994e-05,2]
[348889609,1736857836134,-500.0,9.994e-05,2]
[348889611,1736857836143,-500.0,9.994e-05,2]
[348889613,1736857836153,-500.0,9.994e-05,2]
[348889615,1736857836164,-500.0,9.994e-05,2]
[348889617,1736857836175,-317.14101022,9.994e-05,2]
[348889619,1736857836185,-246.23008783,9.994e-05,2]
[348889621,1736857836195,-500.0,9.994e-05,2]
[348889623,1736857836205,-589.37,9.994e-05,2]
[348889625,1736857836216,-500.4258487,9.994e-05,2]
[348889627,1736857836225,-501.80297329,9.994e-05,2]
[348889628,1736857836235,-500.0,9.994e-05,2]
[348889630,1736857836249,-503.11803573,9.994e-05,2]
[348889632,1736857836258,-500.66294993,9.994e-05,2]
[348889634,1736857836267,-500.0,9.994e-05,2]
[348889636,1736857836277,-500.0,9.994e-05,2]
[348889638,1736857836287,-99.94763457,9.994e-05,2]
[348889641,1736857836302,-300.999999,9.994e-05,2]
[348889643,1736857836313,-99.05236643,9.994e-05,2]
[348889645,1736857836322,-500.0,9.994e-05,2]
[348889647,1736857836332,-500.0,9.994e-05,2]
[348889649,1736857836341,-400.94768357,9.994e-05,2]
[348889651,1736857836352,-99.05231643,9.994e-05,2]
[348889653,1736857836362,-500.0,9.994e-05,2]
[348889655,1736857836371,-385.75559538,9.994e-05,2]
[348889661,1736857836417,-114.24440462,9.994e-05,2]
[348889662,1736857836426,-500.0,9.994e-05,2]
[348889664,1736857836436,-500.0,9.994e-05,2]
[348889666,1736857836445,-567.77334601,9.994e-05,2]
[348889669,1736857836457,-196.60665399,9.994e-05,2]
[348889671,1736857836466,-500.0,9.994e-05,2]
[348889673,1736857836475,-413.92033376,9.994e-05,2]
[348889805,1736857837847,-500.0,9.993e-05,2]
[348889807,1736857837856,-33.5,9.993e-05,2]
[348889809,1736857837867,-785.93,9.993e-05,2]
[348889811,1736857837876,-86.07966624,9.994e-05,2]
[348889813,1736857837885,-500.0,9.994e-05,2]
[348889815,1736857837894,-500.79181908,9.994e-05,2]
[348889817,1736857837904,-500.0,9.994e-05,2]
[348889819,1736857837914,-501.67568754,9.994e-05,2]
[348889821,1736857837923,-501.30658758,9.994e-05,2]
[348889823,1736857837932,-500.57680948,9.994e-05,2]
[348889825,1736857837942,-165.8077915,9.994e-05,2]
[348889827,1736857837953,-353.6322085,9.994e-05,2]
[348889829,1736857837962,-293.89443836,9.994e-05,2]
[348889832,1736857837973,-262.54556164,9.994e-05,2]
[348889834,1736857837983,-211.61443837,9.994e-05,2]
[348889836,1736857837994,-288.38556163,9.994e-05,2]
[348889838,1736857838003,-849.0,9.994e-05,2]
[348889840,1736857838013,-500.0,9.994e-05,2]
[348889842,1736857838023,-500.0,9.994e-05,2]
[348889844,1736857838032,-500.0,9.994e-05,2]
[348889846,1736857838041,-500.0,9.994e-05,2]
[348889848,1736857838050,-500.0,9.994e-05,2]
[348889850,1736857838059,-500.36529856,9.994e-05,2]
[348889852,1736857838068,-508.58976617,9.994e-05,2]
[348889854,1736857838078,-500.0,9.994e-05,2]
[348889856,1736857838087,-195.12331492,9.994e-05,2]
[348889858,1736857838096,-500.0,9.994e-05,2]
[348889860,1736857838106,-500.25810459,9.994e-05,2]
[348889862,1736857838115,-528.16371606,9.994e-05,2]
[348889864,1736857838124,-500.0,9.994e-05,2]
[348889866,1736857838134,-500.0,9.994e-05,2]
[348889868,1736857838142,-500.0,9.994e-05,2]
[348889870,1736857838152,-249.48992879,9.994e-05,2]
[348889872,1736857838161,-500.0,9.994e-05,2]
[348889874,1736857838171,-500.0,9.994e-05,2]
[348889876,1736857838182,-3118.11,9.994e-05,2]
[348889878,1736857838192,-500.0,9.994e-05,2]
[348889880,1736857838201,-503.31650611,9.994e-05,2]
[348889882,1736857838210,-500.0,9.994e-05,2]
[348889884,1736857838221,-500.0,9.994e-05,2]
[348889886,1736857838231,-500.0,9.994e-05,2]
[348889888,1736857838240,-500.0,9.994e-05,2]
[348889890,1736857838249,-500.0,9.994e-05,2]
[348889893,1736857838258,-500.0,9.994e-05,2]
[348889895,1736857838270,-500.0,9.994e-05,2]
[348889897,1736857838280,-500.0,9.994e-05,2]
[348889899,1736857838289,-784.08,9.994e-05,2]
[348889901,1736857838298,-500.0,9.994e-05,2]
[348889903,1736857838307,-500.0,9.994e-05,2]
[348889905,1736857838317,-500.0,9.994e-05,2]
[348889907,1736857838326,-500.0,9.994e-05,2]
[348889908,1736857838336,-500.0,9.994e-05,2]
[348889910,1736857838346,-188.88711834,9.994e-05,2]
[348889912,1736857838356,-500.0,9.994e-05,2]
[348889915,1736857838365,-500.0,9.994e-05,2]
[348889916,1736857838375,-511.98006752,9.994e-05,2]
[348889918,1736857838384,-500.0,9.994e-05,2]
[348889920,1736857838393,-954.0,9.994e-05,2]
[348889922,1736857838402,-500.0,9.994e-05,2]
[348889924,1736857838412,-503.21575671,9.994e-05,2]
[348889926,1736857838421,-502.30522425,9.994e-05,2]
[348889928,1736857838431,-500.0,9.994e-05,2]
[348889930,1736857838441,-500.0,9.994e-05,2]
[348889932,1736857838450,-500.0,9.994e-05,2]
[348889934,1736857838459,-509.32838305,9.994e-05,2]
[348889936,1736857838468,-377.50794736,9.994e-05,2]
[348889938,1736857838477,-500.65582132,9.994e-05,2]
[348889940,1736857838486,-523.66278901,9.994e-05,2]
[348889943,1736857838499,-72.45721099,9.994e-05,2]
[348889944,1736857838509,-500.0,9.994e-05,2]
[348889947,1736857838519,-593.87,9.994e-05,2]
[348889949,1736857838528,-503.24986897,9.994e-05,2]
[348889951,1736857838537,-586.94550881,9.994e-05,2]
[348889953,1736857838546,-500.0,9.994e-05,2]
[348889955,1736857838556,-606.82015076,9.994e-05,2]
[348889956,1736857838566,-500.0,9.994e-05,2]
[348889959,1736857838575,-961.7,9.994e-05,2]
[348889961,1736857838585,-500.0,9.994e-05,2]
[348889963,1736857838595,-500.0,9.994e-05,2]
[348889965,1736857838604,-503.59727648,9.994e-05,2]
[348889966,1736857838613,-500.0,9.994e-05,2]
[348889968,1736857838622,-500.0,9.994e-05,2]
[348889970,1736857838632,-500.0,9.994e-05,2]
[348889972,1736857838641,-500.0,9.994e-05,2]
[348889974,1736857838650,-973.87,9.994e-05,2]
[348889976,1736857838661,-500.0,9.994e-05,2]
[348889978,1736857838670,-500.0,9.994e-05,2]
[348889980,1736857838681,-504.67577299,9.994e-05,2]
[348889982,1736857838691,-500.0,9.994e-05,2]
[348889984,1736857838700,-500.0,9.994e-05,2]
[348889986,1736857838710,-500.0,9.994e-05,2]
[348889988,1736857838719,-220.67863504,9.994e-05,2]
[348889991,1736857838731,-279.32136496,9.994e-05,2]
[348889992,1736857838740,-500.0,9.994e-05,2]
[348889994,1736857838749,-506.32350944,9.994e-05,2]
[348889996,1736857838758,-500.0,9.994e-05,2]
[348889998,1736857838768,-500.0,9.994e-05,2]
[348890000,1736857838778,-503.15777776,9.994e-05,2]
[348890002,1736857838787,-316.66746181,9.994e-05,2]
[348890004,1736857838796,-500.0,9.994e-05,2]
[348890006,1736857838805,-500.0,9.994e-05,2]
[348890008,1736857838815,-500.0,9.994e-05,2]
[348890010,1736857838823,-500.0,9.994e-05,2]
[348890012,1736857838833,-500.0,9.994e-05,2]
[348890014,1736857838841,-500.0,9.994e-05,2]
[348890016,1736857838851,-500.0,9.994e-05,2]
[348890018,1736857838860,-500.0,9.994e-05,2]
[348890020,1736857838869,-748.34,9.994e-05,2]
[348890022,1736857838879,-504.45930942,9.994e-05,2]
[348890024,1736857838888,-500.0,9.994e-05,2]
[348890026,1736857838898,-500.0,9.994e-05,2]
[348890028,1736857838907,-500.0,9.994e-05,2]
[348890030,1736857838916,-500.0,9.994e-05,2]
[348890032,1736857838925,-1375.06,9.994e-05,2]
[348890033,1736857838934,-500.0,9.994e-05,2]
[348890035,1736857838944,-500.0,9.994e-05,2]
[348890038,1736857838954,-500.0,9.994e-05,2]
[348890039,1736857838963,-500.0,9.994e-05,2]
[348890042,1736857838973,-500.0,9.994e-05,2]
[348890044,1736857838982,-500.0,9.994e-05,2]
[348890045,1736857838991,-500.0,9.994e-05,2]
[348890047,1736857839001,-919.06,9.994e-05,2]
[348890050,1736857839011,-500.0,9.994e-05,2]
[348890052,1736857839021,-828.61,9.994e-05,2]
[348890054,1736857839031,-500.0,9.994e-05,2]
[348890056,1736857839040,-500.0,9.994e-05,2]
[348890058,1736857839049,-543.46564711,9.994e-05,2]
[348890060,1736857839058,-344.30893112,9.994e-05,2]
[348890062,1736857839071,-155.69106888,9.994e-05,2]
[348890064,1736857839080,-500.0,9.994e-05,2]
[348890066,1736857839089,-500.0,9.994e-05,2]
[348890068,1736857839099,-500.0,9.994e-05,2]
[348890070,1736857839108,-500.0,9.994e-05,2]
[348890072,1736857839117,-500.0,9.994e-05,2]
[348890074,1736857839126,-1833.18,9.994e-05,2]
[348890076,1736857839135,-500.0,9.994e-05,2]
[348890078,1736857839144,-500.0,9.994e-05,2]
[348890080,1736857839153,-500.0,9.994e-05,2]
[348890082,1736857839164,-500.0,9.994e-05,2]
[348890083,1736857839175,-500.0,9.994e-05,2]
[348890085,1736857839185,-500.0,9.994e-05,2]
[348890087,1736857839195,-500.0,9.994e-05,2]
[348890089,1736857839204,-2333.4,9.994e-05,2]
[348890092,1736857839214,-500.0,9.994e-05,2]
[348890093,1736857839224,-500.0,9.994e-05,2]
[348890095,1736857839233,-500.0,9.994e-05,2]
[348890098,1736857839245,-500.0,9.994e-05,2]
[348890100,1736857839254,-500.0,9.994e-05,2]
[348890101,1736857839263,-500.0,9.994e-05,2]
[348890103,1736857839271,-500.0,9.994e-05,2]
[348890105,1736857839281,-500.0,9.994e-05,2]
[348890107,1736857839290,-500.0,9.994e-05,2]
[348890109,1736857839300,-500.0,9.994e-05,2]
[348890111,1736857839309,-500.0,9.994e-05,2]
[348890113,1736857839318,-500.0,9.994e-05,2]
[348890115,1736857839327,-765.79,9.994e-05,2]
[348890118,1736857839338,-500.0,9.994e-05,2]
[348890120,1736857839347,-500.0,9.994e-05,2]
[348890122,1736857839356,-500.0,9.994e-05,2]
[348890123,1736857839365,-500.0,9.994e-05,2]
[348890126,1736857839374,-1290.02,9.994e-05,2]
[348890127,1736857839384,-947.38,9.994e-05,2]
[348890130,1736857839394,-500.0,9.994e-05,2]
[348890131,1736857839404,-671.42,9.994e-05,2]
[348890133,1736857839414,-500.0,9.994e-05,2]
[348890135,1736857839424,-500.0,9.994e-05,2]
[348890137,1736857839434,-500.0,9.994e-05,2]
[348890139,1736857839444,-500.0,9.994e-05,2]
[348890141,1736857839453,-500.0,9.994e-05,2]
[348890143,1736857839463,-517.08,9.994e-05,2]
[348890145,1736857839473,-500.0,9.994e-05,2]
[348890147,1736857839482,-500.0,9.994e-05,2]
[348890149,1736857839492,-500.0,9.994e-05,2]
[348890151,1736857839502,-500.0,9.994e-05,2]
[348890153,1736857839512,-649.8,9.994e-05,2]
[348890155,1736857839521,-1002.07,9.994e-05,2]
[348890158,1736857839532,-971.09,9.994e-05,2]
[348890160,1736857839542,-500.0,9.994e-05,2]
[348890161,1736857839551,-500.0,9.994e-05,2]
[348890164,1736857839561,-856.84,9.994e-05,2]
[348890165,1736857839571,-500.0,9.994e-05,2]
[348890167,1736857839581,-1354.86,9.994e-05,2]
[348890169,1736857839591,-500.0,9.994e-05,2]
[348890171,1736857839601,-301.96009317,9.994e-05,2]
[348890173,1736857839610,-500.0,9.994e-05,2]
[348890175,1736857839620,-697.6,9.994e-05,2]
[348890177,1736857839630,-500.0,9.994e-05,2]
[348890179,1736857839639,-3085.95,9.994e-05,2]
[348890181,1736857839649,-751.2,9.994e-05,2]
[348890184,1736857839660,-500.0,9.994e-05,2]
[348890186,1736857839670,-500.0,9.994e-05,2]
[348890189,1736857839681,-500.0,9.994e-05,2]
[348890192,1736857839691,-2872.71,9.994e-05,2]
[348890194,1736857839700,-502.35910494,9.994e-05,2]
[348890196,1736857839710,-663.22,9.994e-05,2]
[348890198,1736857839720,-500.0,9.994e-05,7]
[348890200,1736857839729,-500.0,9.994e-05,2]
[348890202,1736857839739,-503.4881602,9.994e-05,2]
[348890204,1736857839748,-500.0,9.994e-05,2]
[348890206,1736857839757,-500.0,9.994e-05,2]
[348890209,1736857839766,-500.0,9.994e-05,2]
[348890211,1736857839776,-849.29,9.994e-05,2]
[348890212,1736857839785,-1857.66,9.994e-05,2]
[348890214,1736857839794,-500.0,9.994e-05,2]
[348890217,1736857839803,-500.0,9.994e-05,2]
[348890220,1736857839813,-500.0,9.994e-05,2]
[348890223,1736857839823,-500.0,9.994e-05,2]
[348890225,1736857839832,-794.89,9.994e-05,2]
[348890227,1736857839841,-3733.01,9.994e-05,2]
[348890229,1736857839851,-500.0,9.994e-05,2]
[348890230,1736857839860,-500.0,9.994e-05,2]
[348890233,1736857839871,-500.0,9.994e-05,2]
[348890234,1736857839880,-500.0,9.994e-05,2]
[348890236,1736857839891,-571.43,9.994e-05,2]
[348890239,1736857839901,-500.0,9.994e-05,2]
[348890240,1736857839912,-500.0,9.994e-05,2]
[348890242,1736857839922,-442.68790884,9.994e-05,2]
[348890244,1736857839930,-500.0,9.994e-05,2]
[348890246,1736857839940,-700.8,9.994e-05,2]
[348890248,1736857839950,-844.9,9.994e-05,2]
[348890250,1736857839959,-500.0,9.994e-05,2]
[348890252,1736857839968,-500.0,9.994e-05,2]
[348890254,1736857839978,-500.0,9.994e-05,2]
[348890256,1736857839987,-638.24,9.994e-05,2]
[348890258,1736857839996,-2979.48,9.994e-05,2]
[348890260,1736857840004,-500.0,9.994e-05,2]
[348890262,1736857840014,-500.0,9.994e-05,2]
[348890264,1736857840025,-500.0,9.994e-05,2]
[348890266,1736857840034,-500.0,9.994e-05,2]
[348890268,1736857840043,-500.0,9.994e-05,2]
[348890270,1736857840052,-500.0,9.994e-05,2]
[348890272,1736857840062,-500.0,9.994e-05,2]
[348890273,1736857840074,-500.0,9.994e-05,2]
[348890274,1736857840084,-500.0,9.994e-05,2]
[348890275,1736857840094,-500.0,9.994e-05,2]
[348890276,1736857840103,-1494.26,9.994e-05,2]
[348890277,1736857840113,-500.0,9.994e-05,2]
[348890278,1736857840122,-500.0,9.994e-05,2]
[348890279,1736857840131,-714.77,9.994e-05,2]
[348890280,1736857840140,-780.02,9.994e-05,2]
[348890281,1736857840149,-628.2888686,9.994e-05,2]
[348890282,1736857840159,-500.0,9.994e-05,2]
[348890283,1736857840170,-500.0,9.994e-05,2]
[348890284,1736857840180,-1328.92,9.994e-05,2]
[348890286,1736857840189,-150.6113252,9.994e-05,2]
[348890288,1736857840198,-505.40234004,9.994e-05,2]
[348890290,1736857840207,-500.0,9.994e-05,2]
[348890292,1736857840218,-204.61484335,9.994e-05,2]
[348890294,1736857840226,-500.0,9.994e-05,2]
[348890296,1736857840235,-500.0,9.994e-05,2]
[348890298,1736857840246,-642.84,9.994e-05,2]
[348890300,1736857840255,-222.22426846,9.994e-05,2]
[348890302,1736857840265,-500.0,9.994e-05,2]
[348890304,1736857840274,-1213.87110248,9.994e-05,2]
[348890307,1736857840292,-58.66889752,9.994e-05,2]
[348890309,1736857840301,-327.20348375,9.994e-05,2]
[348890311,1736857840314,-172.79651625,9.994e-05,2]
[348890313,1736857840323,-500.0,9.994e-05,2]
[348890315,1736857840332,-500.0,9.994e-05,2]
[348890317,1736857840341,-343.39860547,9.994e-05,2]
[348890319,1736857840352,-156.60139453,9.994e-05,2]
[348890321,1736857840362,-500.0,9.994e-05,2]
[348890323,1736857840371,-1298.23259868,9.994e-05,2]
[348890325,1736857840383,-588.12740132,9.994e-05,2]
[348890327,1736857840392,-500.0,9.994e-05,2]
[348890329,1736857840401,-500.0,9.994e-05,2]
[348890331,1736857840411,-413.54505871,9.994e-05,2]
[348890335,1736857840441,-1139.07494129,9.994e-05,2]
[348890337,1736857840450,-500.0,9.994e-05,2]
[348890339,1736857840459,-500.0,9.994e-05,2]
[348890341,1736857840469,-500.0,9.994e-05,2]
[348890343,1736857840478,-500.0,9.994e-05,2]
[348890345,1736857840487,-500.0,9.994e-05,2]
[348890347,1736857840496,-610.0,9.994e-05,2]
[348890349,1736857840505,-500.0,9.994e-05,2]
[348890351,1736857840514,-505.77,9.994e-05,2]
[348890353,1736857840524,-802.3,9.994e-05,2]
[348890355,1736857840533,-500.0,9.994e-05,2]
[348890357,1736857840542,-295.92787157,9.994e-05,2]
[348890384,1736857840799,-204.07212843,9.994e-05,2]
[348890386,1736857840809,-757.88787157,9.994e-05,2]
[348890390,1736857840831,-2570.55212843,9.994e-05,2]
[348890392,1736857840841,-500.0,9.994e-05,2]
[348890394,1736857840850,-588.00683947,9.994e-05,2]
[348890396,1736857840859,-500.0,9.994e-05,2]
[348890398,1736857840868,-504.54923891,9.994e-05,2]
[348890400,1736857840878,-130.2424019,9.994e-05,2]
[348890403,1736857840897,-369.7575981,9.994e-05,2]
[348890405,1736857840906,-558.73,9.994e-05,2]
[348890407,1736857840916,-692.23,9.994e-05,2]
[348890409,1736857840925,-500.0,9.994e-05,2]
[348890411,1736857840934,-636.5309681,9.994e-05,2]
[348890413,1736857840945,-330.52207907,9.994e-05,2]
[348890415,1736857840956,-307.42695283,9.994e-05,2]
[348890417,1736857840965,-192.57304717,9.994e-05,2]
[348890518,1736857842928,-500.0,9.993e-05,2]
[348890519,1736857842939,-2604.93,9.993e-05,2]
[348890520,1736857842948,-314.36107845,9.994e-05,2]
[348890521,1736857842957,-3135.36,9.994e-05,2]
[348890522,1736857842966,-500.0,9.994e-05,2]
[348890523,1736857842975,-500.0,9.994e-05,2]
[348890524,1736857842985,-500.0,9.994e-05,2]
[348890525,1736857842994,-6231.27105816,9.994e-05,2]
[348890526,1736857843015,-1338.46894184,9.994e-05,2]
[348890527,1736857843024,-500.0,9.994e-05,2]
[348890528,1736857843034,-500.0,9.994e-05,2]
[348890529,1736857843043,-500.0,9.994e-05,2]
[348890531,1736857843052,-500.0,9.994e-05,2]
[348890533,1736857843062,-500.0,9.994e-05,2]
[348890535,1736857843071,-1393.28,9.994e-05,2]
[348890537,1736857843080,-502.40091197,9.994e-05,2]
[348890539,1736857843090,-595.20871694,9.994e-05,2]
[348890541,1736857843099,-500.0,9.994e-05,2]
[348890543,1736857843109,-500.0,9.994e-05,2]
[348890544,1736857843118,-500.0,9.994e-05,2]
[348890546,1736857843127,-585.13,9.994e-05,2]
[348890548,1736857843136,-2706.05,9.994e-05,2]
[348890550,1736857843145,-513.36778183,9.994e-05,2]
[348890552,1736857843154,-500.0,9.994e-05,2]
[348890554,1736857843163,-500.0,9.994e-05,2]
[348890556,1736857843176,-500.0,9.994e-05,2]
[348890558,1736857843185,-502.28,9.994e-05,2]
[348890560,1736857843194,-500.0,9.994e-05,2]
[348890562,1736857843203,-500.0,9.994e-05,2]
[348890564,1736857843211,-503.76280648,9.994e-05,2]
[348890566,1736857843222,-500.0,9.994e-05,2]
[348890568,1736857843231,-1071.53,9.994e-05,2]
[348890570,1736857843240,-500.0,9.994e-05,2]
[348890572,1736857843250,-959.83,9.994e-05,2]
[348890574,1736857843259,-500.0,9.994e-05,2]
[348890576,1736857843268,-500.0,9.994e-05,2]
[348890578,1736857843277,-500.0,9.994e-05,2]
[348890580,1736857843286,-500.0,9.994e-05,2]
[348890582,1736857843295,-500.0,9.994e-05,2]
[348890584,1736857843305,-150.61132512,9.995e-05,2]
[348890586,1736857843314,-500.0,9.995e-05,2]
[348890588,1736857843323,-439.19532021,9.995e-05,2]
[348890590,1736857843332,-500.0,9.995e-05,2]
[348890592,1736857843341,-500.0,9.995e-05,2]
[348890594,1736857843350,-500.0,9.995e-05,2]
[348890596,1736857843359,-500.0,9.995e-05,2]
[348890598,1736857843368,-500.0,9.995e-05,2]
[348890600,1736857843377,-500.0,9.995e-05,2]
[348890602,1736857843386,-539.42273052,9.995e-05,2]
[348890604,1736857843395,-500.0,9.995e-05,2]
[348890606,1736857843403,-500.0,9.995e-05,2]
[348890608,1736857843413,-500.0,9.995e-05,2]
[348890610,1736857843421,-500.0,9.995e-05,2]
[348890612,1736857843430,-500.0,9.995e-05,2]
[348890614,1736857843439,-500.0,9.995e-05,2]
[348890616,1736857843448,-500.0,9.995e-05,2]
[348890618,1736857843458,-500.0,9.995e-05,2]
[348890620,1736857843467,-500.0,9.995e-05,2]
[348890621,1736857843476,-872.27,9.995e-05,2]
[348890623,1736857843485,-500.0,9.995e-05,2]
[348890626,1736857843495,-553.27,9.995e-05,2]
[348890630,1736857843504,-500.0,9.995e-05,2]
[348890633,1736857843514,-911.45,9.995e-05,2]
[348890637,1736857843523,-500.0,9.995e-05,2]
[348890640,1736857843533,-500.0,9.995e-05,2]
[348890642,1736857843543,-500.0,9.995e-05,2]
[348890644,1736857843552,-542.66,9.995e-05,2]
[348890647,1736857843561,-500.0,9.995e-05,2]
[348890650,1736857843570,-500.0,9.995e-05,2]
[348890653,1736857843579,-1514.09,9.995e-05,2]
[348890656,1736857843588,-2872.04,9.995e-05,2]
[348890660,1736857843598,-500.0,9.995e-05,2]
[348890663,1736857843607,-1433.61,9.995e-05,2]
[348890666,1736857843616,-1509.3,9.995e-05,2]
[348890669,1736857843624,-1586.05,9.995e-05,2]
[348890672,1736857843634,-2015.29,9.995e-05,2]
[348890675,1736857843643,-500.0,9.995e-05,2]
[348890677,1736857843652,-865.44,9.995e-05,2]
[348890680,1736857843662,-2131.94,9.995e-05,2]
[348890683,1736857843671,-1393.04,9.995e-05,2]
[348890686,1736857843681,-939.21,9.995e-05,2]
[348890688,1736857843691,-3733.98,9.995e-05,2]
[348890690,1736857843700,-1618.13,9.995e-05,2]
[348890692,1736857843709,-500.0,9.995e-05,2]
[348890694,1736857843719,-982.51,9.995e-05,2]
[348890696,1736857843728,-150.61132512,9.995e-05,2]
[348890698,1736857843737,-1862.0,9.996e-05,2]
[348890700,1736857843745,-1259.0,9.996e-05,2]
[348890702,1736857843755,-2945.0,9.996e-05,2]
[348890704,1736857843764,-820.0,9.996e-05,2]
[348890706,1736857843774,-906.0,9.996e-05,2]
[348890708,1736857843784,-537.0,9.996e-05,2]
[348890710,1736857843793,-3979.0,9.996e-05,2]
[348890712,1736857843802,-3897.0,9.996e-05,2]
[348890714,1736857843811,-150.0,9.996e-05,2]
[348890716,1736857843820,-1268.0,9.996e-05,2]
[348890718,1736857843829,-151.0,9.996e-05,2]
[348890720,1736857843838,-2016.0,9.996e-05,2]
[348890722,1736857843847,-150.61132512,9.996e-05,2]
[348890724,1736857843856,-150.61132512,9.996e-05,2]
[348890726,1736857843866,-150.0,9.996e-05,2]
[348890728,1736857843875,-150.0,9.996e-05,2]
[348890730,1736857843884,-150.0,9.996e-05,2]
[348890732,1736857843893,-150.0,9.996e-05,2]
[348890734,1736857843902,-150.0,9.996e-05,2]
[348890736,1736857843911,-150.949,9.996e-05,2]